Workbook

Sheet Лист1
A1: Итоги школьного этапа всероссийской, республиканской и муниципальной олимпиад школьников в 2022/2023 учебном году
C2: Всего участников | AH2: Количество победителей (от 75% выполнения и выше) | BI2: Количество призеров (от 50% и выше)
A3: Класс | C3: 1 | E3: 2 | G3: 3 | I3: 4 | K3: 5 | M3: 6 | O3: 7 | Q3: 8 | S3: 9 | U3: 10 | W3: 11 | Y3: итого | AB3: 1 | AD3: 2 | AF3: 3 | AH3: 4 | AJ3: 5 | AL3: 6 | AN3: 7 | AP3: 8 | AR3: 9 | AT3: 10 | AV3: 11 | AX3: итого | BA3: 1 | BC3: 2 | BE3: 3 | BG3: 4 | BI3: 5 | BK3: 6 | BM3: 7 | BO3: 8 | BQ3: 9 | BS3: 10 | BU3: 11 | BW3: итого
A4: Предмет | B4: Дата проведения | C4: всего | D4: в т.ч. мальчиков | E4: всего | F4: в т.ч. мальчиков | G4: всего | H4: в т.ч. альчиков | I4: всего | J4: в т.ч. мальчиков | K4: всего | L4: в т.ч. мальчиков | M4: всего | N4: в т.ч. мальчиков | O4: всего | P4: в т.ч. мальчиков | Q4: всего | R4: в т.ч. мальчиков | S4: всего | T4: в т.ч. мальчиков | U4: всего | V4: в т.ч. мальчиков | W4: всего | X4: в т.ч. мальчиков | Y4: к-во чел. | Z4: в т.ч. мальчиков | AA4: в т.ч. девочек | AB4: всего | AC4: в т.ч. мальчиков | AD4: всего | AE4: в т.ч. мальчиков | AF4: всего | AG4: в т.ч. мальчиков | AH4: всего | AI4: в т.ч. мальчиков | AJ4: всего | AK4: в т.ч. мальчиков | AL4: всего | AM4: в т.ч. мальчиков | AN4: всего | AO4: в т.ч. мальчиков | AP4: всего | AQ4: в т.ч. мальчиков | AR4: всего | AS4: в т.ч. мальчиков | AT4: всего | AU4: в т.ч. мальчиков | AV4: всего | AW4: в т.ч. мальчиков | AX4: к-во чел. | AY4: в т.ч. мальчиков | AZ4: в т.ч. девочек | BA4: всего | BB4: в т.ч. мальчиков | BC4: всего | BD4: в т.ч. мальчиков | BE4: всего | BF4: в т.ч. мальчиков | BG4: всего | BH4: в т.ч. мальчиков | BI4: всего | BJ4: в т.ч. мальчиков | BK4: всего | BL4: в т.ч. мальчиков | BM4: всего | BN4: в т.ч. мальчиков | BO4: всего | BP4: в т.ч. мальчиков | BQ4: всего | BR4: в т.ч. мальчиков | BS4: всего | BT4: в т.ч. мальчиков | BU4: всего | BV4: в т.ч. мальчиков | BW4: к-во чел. | BX4: в т.ч. мальчиков | BY4: в т.ч. девочек
A5: Искусство (МХК) | B5: 2022-09-21 | C5: 0 | D5: 0 | E5: 0 | F5: 0 | G5: 0 | H5: 0 | I5: 83 | J5: 42 | K5: 76 | L5: 35 | M5: 55 | N5: 25 | O5: 55 | P5: 28 | Q5: 42 | R5: 20 | S5: 36 | T5: 18 | U5: 13 | V5: 6 | W5: 0 | X5: 0 | Y5: =C5+E5+G5+I5+K5+M5+O5+Q5+S5+U5+W5 -> 360 | Z5: 174 | AA5: =Y5-Z5 -> 186 | AB5: 0 | AC5: 0 | AD5: 0 | AE5: 0 | AF5: 0 | AG5: 0 | AH5: 0 | AI5: 0 | AJ5: 0 | AK5: 0 | AL5: 0 | AM5: 0 | AN5: 0 | AO5: 0 | AP5: 0 | AQ5: 0 | AR5: 0 | AS5: 0 | AT5: 0 | AU5: 0 | AV5: 0 | AW5: 0 | AX5: =AB5+AD5+AF5+AH5+AJ5+AL5+AN5+AP5+AR5+AT5+AV5 -> 0 | AY5: =AC5+AE5+AG5+AI5+AK5+AM5+AO5+AQ5+AS5+AU5+AW5 -> 0 | AZ5: =AX5-AY5 -> 0 | BA5: 0 | BB5: 0 | BC5: 0 | BD5: 0 | BE5: 0 | BF5: 0 | BG5: 3 | BH5: 1 | BI5: 3 | BJ5: 1 | BK5: 0 | BL5: 0 | BM5: 1 | BN5: 0 | BO5: 2 | BP5: 0 | BQ5: 0 | BR5: 0 | BS5: 0 | BT5: 0 | BU5: 0 | BV5: 0 | BW5: =BA5+BC5+BE5+BG5+BI5+BK5+BM5+BO5+BQ5+BS5+BU5 -> 9 | BX5: =BB5+BD5+BF5+BH5+BJ5+BL5+BN5+BP5+BR5+BT5+BV5 -> 2 | BY5: =BW5-BX5 -> 7
A6: Татарский язык для русскоязычных обучающихся школ с русским языком обучения | B6: 2022-09-23 | C6: 0 | D6: 0 | E6: 18 | F6: 5 | G6: 36 | H6: 18 | I6: 59 | J6: 24 | K6: 32 | L6: 15 | M6: 15 | N6: 8 | O6: 12 | P6: 5 | Q6: 8 | R6: 5 | S6: 9 | T6: 3 | U6: 13 | V6: 6 | W6: 0 | X6: 0 | Y6: =C6+E6+G6+I6+K6+M6+O6+Q6+S6+U6+W6 -> 202 | Z6: =D6+F6+H6+J6+L6+N6+P6+R6+T6+V6+X6 -> 89 | AA6: =Y6-Z6 -> 113 | AB6: 0 | AC6: 0 | AD6: 0 | AE6: 0 | AF6: 0 | AG6: 0 | AH6: 1 | AI6: 0 | AJ6: 0 | AK6: 0 | AL6: 0 | AM6: 0 | AN6: 0 | AO6: 0 | AP6: 0 | AQ6: 0 | AR6: 0 | AS6: 0 | AT6: 0 | AU6: 0 | AV6: 0 | AW6: 0 | AX6: =AB6+AD6+AF6+AH6+AI6+AL6+AN6+AP6+AR6+AT6+AV6 -> 1 | AY6: 0 | AZ6: 1 | BA6: 0 | BB6: 0 | BC6: 0 | BD6: 0 | BE6: 0 | BF6: 0 | BG6: 1 | BH6: 0 | BI6: 1 | BJ6: 0 | BK6: 0 | BL6: 0 | BM6: 0 | BN6: 0 | BO6: 0 | BP6: 0 | BQ6: 0 | BR6: 0 | BS6: 0 | BT6: 0 | BU6: 0 | BV6: 0 | BW6: =BA6+BC6+BE6+BG6+BI6+BK6+BM6+BO6+BQ6+BS6+BU6 -> 2 | BX6: =BB6+BD6+BF6+BH6+BJ6+BL6+BN6+BP6+BR6+BT6+BV6 -> 0 | BY6: =BW6-BX6 -> 2
A7: История Татарстана и татарского народа | B7: 2022-09-24 | C7: 0 | D7: 0 | E7: 0 | F7: 0 | G7: 0 | H7: 0 | I7: 0 | J7: 0 | K7: 0 | L7: 0 | M7: 0 | N7: 0 | O7: 0 | P7: 0 | Q7: 42 | R7: 18 | S7: 36 | T7: 18 | U7: 13 | V7: 6 | W7: 0 | X7: 0 | Y7: 91 | Z7: 42 | AA7: 49 | AB7: 0 | AC7: 0 | AD7: 0 | AE7: 0 | AF7: 0 | AG7: 0 | AH7: 0 | AI7: 0 | AJ7: 0 | AK7: 0 | AL7: 0 | AM7: 0 | AN7: 0 | AO7: 0 | AP7: 0 | AQ7: 0 | AR7: 0 | AS7: 0 | AT7: 0 | AU7: 0 | AV7: 0 | AW7: 0 | AX7: =AB7+AD7+AF7+AH7+AJ7+AL7+AN7+AP7+AR7+AT7+AV7 -> 0 | AY7: =AC7+AE7+AG7+AI7+AK7+AM7+AO7+AQ7+AS7+AU7+AW7 -> 0 | AZ7: =AX7-AY7 -> 0 | BA7: 0 | BB7: 0 | BC7: 0 | BD7: 0 | BE7: 0 | BF7: 0 | BG7: 0 | BH7: 0 | BI7: 0 | BJ7: 0 | BK7: 0 | BL7: 0 | BM7: 0 | BN7: 0 | BO7: 1 | BP7: 0 | BQ7: 1 | BR7: 0 | BS7: 1 | BT7: 0 | BU7: 0 | BV7: 0 | BW7: 3 | BX7: 0 | BY7: 3
A8: Литература | B8: 2022-09-25 | Q8: 43 | R8: 19 | S8: 36 | T8: 18 | U8: 13 | V8: 6 | W8: 0 | X8: 0 | Y8: 92 | Z8: 43 | AA8: 49 | AX8: 0 | AY8: 0 | AZ8: 0 | BO8: 2 | BP8: 0 | BQ8: 0 | BR8: 0 | BS8: 1 | BT8: 0 | BU8: 0 | BV8: 0 | BW8: 3 | BX8: 0 | BY8: 3
A9: История | B9: 2022-09-27 | C9: 0 | D9: 0 | E9: 0 | F9: 0 | G9: 0 | H9: 0 | I9: 0 | J9: 0 | K9: 76 | L9: 35 | M9: 55 | N9: 25 | O9: 55 | P9: 28 | Q9: 43 | R9: 19 | S9: 36 | T9: 18 | U9: 13 | V9: 6 | W9: 0 | X9: 0 | Y9: 278 | Z9: 131 | AA9: 147 | AB9: 0 | AC9: 0 | AD9: 0 | AE9: 0 | AF9: 0 | AG9: 0 | AH9: 0 | AI9: 0 | AJ9: 0 | AK9: 0 | AL9: 0 | AM9: 0 | AN9: 0 | AO9: 0 | AP9: 0 | AQ9: 0 | AR9: 0 | AS9: 0 | AT9: 0 | AU9: 0 | AV9: 0 | AW9: 0 | AX9: 0 | AY9: 0 | AZ9: 0 | BA9: 0 | BB9: 0 | BC9: 0 | BD9: 0 | BE9: 0 | BF9: 0 | BG9: 0 | BH9: 0 | BI9: 2 | BJ9: 0 | BK9: 1 | BL9: 0 | BM9: 1 | BN9: 0 | BO9: 1 | BP9: 0 | BQ9: 2 | BR9: 0 | BS9: 1 | BT9: 1 | BU9: 0 | BV9: 0 | BW9: 8 | BX9: 1 | BY9: 7
A10: Физика | B10: 2022-09-28 | K10: 76 | L10: 35 | M10: 55 | N10: 25 | O10: 55 | P10: 28 | Q10: 43 | R10: 19 | S10: 36 | T10: 18 | U10: 13 | V10: 6 | W10: 0 | X10: 0 | Y10: 278 | Z10: 131 | AA10: 147 | AX10: 0 | AY10: 0 | AZ10: 0 | BM10: 1 | BN10: 1 | BO10: 2 | BP10: 2 | BQ10: 2 | BR10: 2 | BS10: 1 | BT10: 1 | BU10: 0 | BV10: 0 | BW10: 6 | BX10: 6 | BY10: 0
A11: Экономика | B11: 2022-09-29 | C11: 0 | D11: 0 | E11: 0 | F11: 0 | G11: 0 | H11: 0 | I11: 0 | J11: 0 | K11: 76 | L11: 35 | M11: 55 | N11: 25 | O11: 55 | P11: 28 | Q11: 43 | R11: 19 | S11: 36 | T11: 18 | U11: 13 | V11: 6 | W11: 0 | X11: 0 | Y11: 278 | Z11: 131 | AA11: 147 | AB11: 0 | AC11: 0 | AD11: 0 | AE11: 0 | AF11: 0 | AG11: 0 | AH11: 0 | AI11: 0 | AJ11: 0 | AK11: 0 | AL11: 0 | AM11: 0 | AN11: 0 | AO11: 0 | AP11: 0 | AQ11: 0 | AR11: 0 | AS11: 0 | AT11: 0 | AU11: 0 | AV11: 0 | AW11: 0 | AX11: 0 | AY11: 0 | AZ11: 0 | BA11: 0 | BB11: 0 | BC11: 0 | BD11: 0 | BE11: 0 | BF11: 0 | BG11: 0 | BH11: 0 | BI11: 0 | BJ11: 0 | BK11: 0 | BL11: 0 | BM11: 0 | BN11: 0 | BO11: 0 | BP11: 0 | BQ11: 1 | BR11: 0 | BS11: 2 | BT11: 1 | BU11: 0 | BV11: 0 | BW11: 3 | BX11: 1 | BY11: 2
A12: Геология | B12: 2022-10-03 | C12: 0 | D12: 0 | E12: 0 | F12: 0 | G12: 0 | H12: 0 | I12: 0 | J12: 0 | K12: 0 | L12: 0 | M12: 0 | N12: 0 | O12: 0 | P12: 0 | Q12: 43 | R12: 19 | S12: 36 | T12: 18 | U12: 13 | V12: 6 | W12: 0 | X12: 0 | Y12: 92 | Z12: 43 | AA12: 49 | AB12: 0 | AC12: 0 | AD12: 0 | AE12: 0 | AF12: 0 | AG12: 0 | AH12: 0 | AI12: 0 | AJ12: 0 | AK12: 0 | AL12: 0 | AM12: 0 | AN12: 0 | AO12: 0 | AP12: 0 | AQ12: 0 | AR12: 0 | AS12: 0 | AT12: 0 | AU12: 0 | AV12: 0 | AW12: 0 | AX12: 0 | AY12: 0 | AZ12: 0 | BA12: 0 | BB12: 0 | BC12: 0 | BD12: 0 | BE12: 0 | BF12: 0 | BG12: 0 | BH12: 0 | BI12: 0 | BJ12: 0 | BK12: 0 | BL12: 0 | BM12: 0 | BN12: 0 | BO12: 0 | BP12: 0 | BQ12: 1 | BR12: 0 | BS12: 1 | BT12: 1 | BU12: 0 | BV12: 0 | BW12: 2 | BX12: 1 | BY12: 1
A13: Химия | B13: 2022-10-21 | Q13: 43 | R13: 19 | S13: 36 | T13: 18 | U13: 13 | V13: 6 | W13: 0 | X13: 0 | Y13: 92 | Z13: 43 | AA13: 49 | AX13: 0 | AY13: 0 | AZ13: 0 | BW13: 0 | BX13: 0 | BY13: 0
A14: Экология | B14: 2022-10-06 | C14: 0 | D14: 0 | E14: 0 | F14: 0 | G14: 0 | H14: 0 | I14: 0 | J14: 0 | K14: 76 | L14: 35 | M14: 55 | N14: 25 | O14: 55 | P14: 28 | Q14: 43 | R14: 19 | S14: 36 | T14: 18 | U14: 13 | V14: 6 | W14: 0 | X14: 0 | Y14: 278 | Z14: 131 | AA14: =Y14-Z14 -> 147 | AB14: 0 | AC14: 0 | AD14: 0 | AE14: 0 | AF14: 0 | AG14: 0 | AH14: 0 | AI14: 0 | AJ14: 0 | AK14: 0 | AL14: 0 | AM14: 0 | AN14: 0 | AO14: 0 | AP14: 0 | AQ14: 0 | AR14: 0 | AS14: 0 | AT14: 0 | AU14: 0 | AV14: 0 | AW14: 0 | AX14: 0 | AY14: 0 | AZ14: 0 | BA14: 0 | BB14: 0 | BC14: 0 | BD14: 0 | BE14: 0 | BF14: 0 | BG14: 0 | BH14: 0 | BI14: 7 | BJ14: 2 | BK14: 2 | BL14: 0 | BM14: 8 | BN14: 3 | BO14: 8 | BP14: 0 | BQ14: 5 | BR14: 1 | BS14: 1 | BT14: 1 | BU14: 0 | BV14: 0 | BW14: 31 | BX14: 7 | BY14: 24
A15: Английский язык | B15: 2023-10-07 | C15: 0 | D15: 0 | E15: 0 | F15: 0 | G15: 0 | H15: 0 | I15: 81 | J15: 39 | K15: 76 | L15: 35 | M15: 55 | N15: 25 | O15: 55 | P15: 28 | Q15: 42 | R15: 18 | S15: 36 | T15: 18 | U15: 13 | V15: 6 | W15: 0 | X15: 0 | Y15: =C15+E15+G15+I15+K15+M15+O15+Q15+S15+U15+W15 -> 358 | Z15: =D15+F15+H15+J15+L15+N15+P15+R15+T15+V15+X15 -> 169 | AA15: 189 | AH15: 2 | AI15: 1 | AJ15: 2 | AK15: 0 | AL15: 1 | AM15: 0 | AN15: 1 | AO15: 0 | AP15: 2 | AQ15: 0 | AR15: 1 | AS15: 0 | AT15: 2 | AU15: 1 | AV15: 0 | AW15: 0 | AX15: 11 | AY15: 2 | AZ15: 9 | BA15: 0 | BB15: 0 | BC15: 0 | BD15: 0 | BE15: 0 | BF15: 0 | BG15: 2 | BH15: 0 | BI15: 0 | BJ15: 0 | BK15: 0 | BL15: 0 | BM15: 1 | BN15: 0 | BO15: 0 | BP15: 0 | BQ15: 0 | BR15: 0 | BS15: 0 | BT15: 0 | BU15: 0 | BV15: 0 | BW15: 3 | BX15: 0 | BY15: 3
A16: География | B16: 2022-10-11 | C16: 0 | D16: 0 | E16: 0 | F16: 0 | G16: 0 | H16: 0 | I16: 0 | J16: 0 | K16: 76 | L16: 35 | M16: 55 | N16: 25 | O16: 55 | P16: 28 | Q16: 43 | R16: 19 | S16: 36 | T16: 18 | U16: 13 | V16: 6 | W16: 0 | X16: 0 | Y16: =C16+E16+G16+I16+K16+M16+O16+Q16+S16+U16+W16 -> 278 | Z16: 131 | AA16: 147 | AB16: 0 | AC16: 0 | AD16: 0 | AE16: 0 | AF16: 0 | AG16: 0 | AH16: 0 | AI16: 0 | AJ16: 0 | AK16: 0 | AL16: 0 | AM16: 0 | AN16: 0 | AO16: 0 | AP16: 0 | AQ16: 0 | AR16: 0 | AS16: 0 | AT16: 0 | AU16: 0 | AV16: 0 | AW16: 0 | AX16: 0 | AY16: 0 | AZ16: 0 | BA16: 0 | BB16: 0 | BC16: 0 | BD16: 0 | BE16: 0 | BF16: 0 | BG16: 0 | BH16: 0 | BI16: 4 | BJ16: 3 | BK16: 0 | BL16: 0 | BM16: 7 | BN16: 4 | BO16: 0 | BP16: 0 | BQ16: 3 | BR16: 0 | BS16: 1 | BT16: 1 | BU16: 0 | BV16: 0 | BW16: 15 | BX16: 8 | BY16: 7
A17: Биология | B17: 2022-10-12 | C17: 0 | D17: 0 | E17: 0 | F17: 0 | G17: 0 | H17: 0 | I17: 0 | J17: 0 | K17: 76 | L17: 35 | M17: 55 | N17: 25 | O17: 55 | P17: 28 | Q17: 43 | R17: 19 | S17: 36 | T17: 18 | U17: 13 | V17: 6 | W17: 0 | X17: 0 | Y17: =C17+E17+G17+I17+K17+M17+O17+Q17+S17+U17+W17 -> 278 | Z17: 131 | AA17: 147 | AB17: 0 | AC17: 0 | AD17: 0 | AE17: 0 | AF17: 0 | AG17: 0 | AH17: 0 | AI17: 0 | AJ17: 0 | AK17: 0 | AL17: 0 | AM17: 0 | AN17: 0 | AO17: 0 | AP17: 0 | AQ17: 0 | AR17: 0 | AS17: 0 | AT17: 0 | AU17: 0 | AV17: 0 | AW17: 0 | AX17: 0 | AY17: 0 | AZ17: 0 | BA17: 0 | BB17: 0 | BC17: 0 | BD17: 0 | BE17: 0 | BF17: 0 | BG17: 0 | BH17: 0 | BI17: 2 | BJ17: 0 | BK17: 2 | BL17: 1 | BM17: 3 | BN17: 0 | BO17: 4 | BP17: 0 | BQ17: 1 | BR17: 0 | BS17: 2 | BT17: 2 | BU17: 0 | BV17: 0 | BW17: 14 | BX17: 3 | BY17: 11
A18: Астрономия | B18: 2022-10-14 | K18: 76 | L18: 35 | M18: 55 | N18: 25 | O18: 55 | P18: 28 | Q18: 43 | R18: 19 | S18: 36 | T18: 18 | U18: 13 | V18: 6 | W18: 0 | X18: 0 | Y18: 278 | Z18: 131 | AA18: 147 | AX18: 0 | AY18: 0 | AZ18: 0 | BI18: 1 | BJ18: 0 | BK18: 0 | BL18: 0 | BM18: 0 | BN18: 0 | BO18: 2 | BP18: 0 | BQ18: 1 | BR18: 0 | BS18: 1 | BT18: 1 | BU18: 0 | BV18: 0 | BW18: 5 | BX18: 1 | BY18: 4
A19: Физическая культура | B19: 2022-10-17 | C19: 0 | D19: 0 | E19: 0 | F19: 0 | G19: 0 | H19: 0 | I19: 0 | J19: 0 | K19: 76 | L19: 35 | M19: 55 | N19: 25 | O19: 55 | P19: 28 | Q19: 43 | R19: 19 | S19: 36 | T19: 18 | U19: 13 | V19: 6 | W19: 0 | X19: 0 | Y19: 278 | Z19: 131 | AA19: 147 | AB19: 0 | AC19: 0 | AD19: 0 | AE19: 0 | AF19: 0 | AG19: 0 | AH19: 0 | AI19: 0 | AJ19: 2 | AK19: 1 | AL19: 1 | AM19: 0 | AN19: 2 | AO19: 1 | AP19: 4 | AQ19: 2 | AR19: 3 | AS19: 2 | AT19: 1 | AU19: 1 | AV19: 0 | AW19: 0 | AX19: 13 | AY19: 7 | AZ19: 6 | BA19: 0 | BB19: 0 | BC19: 0 | BD19: 0 | BE19: 0 | BF19: 0 | BG19: 0 | BH19: 0 | BI19: 9 | BJ19: 2 | BK19: 5 | BL19: 2 | BM19: 9 | BN19: 5 | BO19: 7 | BP19: 4 | BQ19: 4 | BR19: 2 | BS19: 3 | BT19: 1 | BU19: 0 | BV19: 0 | BW19: 37 | BX19: 16 | BY19: 21
A20: Математика | B20: 2022-10-19 | C20: 56 | D20: 30 | E20: 82 | F20: 46 | G20: 75 | H20: 42 | I20: 81 | J20: 39 | K20: 76 | L20: 35 | M20: 55 | N20: 25 | O20: 55 | P20: 28 | Q20: 43 | R20: 19 | S20: 36 | T20: 18 | U20: 13 | V20: 6 | W20: 0 | X20: 0 | Y20: 572 | Z20: 288 | AA20: 284 | AB20: 2 | AC20: 0 | AD20: 0 | AE20: 0 | AF20: 1 | AG20: 0 | AH20: 0 | AI20: 0 | AJ20: 0 | AK20: 0 | AL20: 0 | AM20: 0 | AN20: 0 | AO20: 0 | AP20: 0 | AQ20: 0 | AR20: 0 | AS20: 0 | AT20: 0 | AU20: 0 | AV20: 0 | AW20: 0 | AX20: 3 | AY20: 0 | AZ20: 3 | BA20: 16 | BB20: 8 | BC20: 0 | BD20: 0 | BE20: 7 | BF20: 1 | BG20: 7 | BH20: 3 | BI20: 3 | BJ20: 1 | BK20: 1 | BL20: 1 | BM20: 1 | BN20: 0 | BO20: 2 | BP20: 0 | BQ20: 1 | BR20: 0 | BS20: 1 | BT20: 1 | BU20: 0 | BV20: 0 | BW20: 39 | BX20: 15 | BY20: 24
A21: Обществознание | B21: 2022-10-20 | C21: 0 | D21: 0 | E21: 0 | F21: 0 | G21: 0 | H21: 0 | I21: 0 | J21: 0 | K21: 76 | L21: 35 | M21: 55 | N21: 25 | O21: 55 | P21: 28 | Q21: 43 | R21: 19 | S21: 36 | T21: 18 | U21: 13 | V21: 6 | W21: 0 | X21: 0 | Y21: 278 | Z21: 131 | AA21: 147 | AB21: 0 | AC21: 0 | AD21: 0 | AE21: 0 | AF21: 0 | AG21: 0 | AH21: 0 | AI21: 0 | AJ21: 0 | AK21: 0 | AL21: 0 | AM21: 0 | AN21: 0 | AO21: 0 | AP21: 0 | AQ21: 0 | AR21: 0 | AS21: 0 | AT21: 0 | AU21: 0 | AV21: 0 | AW21: 0 | AX21: 0 | AY21: 0 | AZ21: 0 | BA21: 0 | BB21: 0 | BC21: 0 | BD21: 0 | BE21: 0 | BF21: 0 | BG21: 0 | BH21: 0 | BI21: 0 | BJ21: 0 | BK21: 0 | BL21: 0 | BM21: 2 | BN21: 0 | BO21: 2 | BP21: 0 | BQ21: 3 | BR21: 1 | BS21: 2 | BT21: 1 | BU21: 0 | BV21: 0 | BW21: 9 | BX21: 2 | BY21: 7
A22: ОБЖ | B22: 2022-10-21 | C22: 0 | D22: 0 | E22: 0 | F22: 0 | K22: 76 | L22: 35 | M22: 55 | N22: 25 | O22: 55 | P22: 28 | Q22: 43 | R22: 19 | S22: 36 | T22: 18 | U22: 13 | V22: 6 | W22: 0 | X22: 0 | Y22: 278 | Z22: 131 | AA22: 147 | AB22: 0 | AC22: 0 | AD22: 0 | AE22: 0 | AF22: 0 | AG22: 0 | AH22: 0 | AI22: 0 | AJ22: 0 | AK22: 0 | AL22: 0 | AM22: 0 | AN22: 0 | AO22: 0 | AP22: 0 | AQ22: 0 | AR22: 0 | AS22: 0 | AT22: 0 | AU22: 0 | AV22: 0 | AW22: 0 | AX22: 0 | AY22: 0 | AZ22: 0 | BA22: 0 | BB22: 0 | BC22: 0 | BD22: 0 | BI22: 2 | BJ22: 2 | BK22: 0 | BL22: 0 | BM22: 0 | BN22: 0 | BO22: 2 | BP22: 0 | BQ22: 1 | BR22: 1 | BS22: 1 | BT22: 1 | BU22: 0 | BV22: 0 | BW22: 6 | BX22: 4 | BY22: 2
A23: Право | B23: 2022-10-24 | C23: 0 | D23: 0 | E23: 0 | F23: 0 | G23: 0 | H23: 0 | I23: 0 | J23: 0 | K23: 0 | L23: 0 | M23: 0 | N23: 0 | O23: 0 | P23: 0 | Q23: 43 | R23: 19 | S23: 36 | T23: 18 | U23: 13 | V23: 6 | W23: 0 | X23: 0 | Y23: 92 | Z23: 43 | AA23: 49 | AB23: 0 | AC23: 0 | AD23: 0 | AE23: 0 | AF23: 0 | AG23: 0 | AH23: 0 | AI23: 0 | AJ23: 0 | AK23: 0 | AL23: 0 | AM23: 0 | AN23: 0 | AO23: 0 | AP23: 0 | AQ23: 0 | AR23: 0 | AS23: 0 | AT23: 0 | AU23: 0 | AV23: 0 | AW23: 0 | AX23: 0 | AY23: 0 | AZ23: 0 | BA23: 0 | BB23: 0 | BC23: 0 | BD23: 0 | BE23: 0 | BF23: 0 | BG23: 0 | BH23: 0 | BI23: 0 | BJ23: 0 | BK23: 0 | BL23: 0 | BM23: 0 | BN23: 0 | BO23: 2 | BP23: 0 | BQ23: 3 | BR23: 0 | BS23: 2 | BT23: 1 | BU23: 0 | BV23: 0 | BW23: 7 | BX23: 1 | BY23: 6
A24: Русский язык | B24: 2022-10-25 | C24: 56 | D24: 30 | E24: 82 | F24: 46 | G24: 75 | H24: 42 | I24: 81 | J24: 39 | K24: 76 | L24: 35 | M24: 55 | N24: 25 | O24: 55 | P24: 28 | Q24: 43 | R24: 19 | S24: 36 | T24: 18 | U24: 13 | V24: 6 | W24: 0 | X24: 0 | Y24: 572 | Z24: 288 | AA24: 284 | AB24: 14 | AC24: 5 | AD24: 5 | AE24: 1 | AF24: 0 | AG24: 0 | AX24: 19 | AY24: 6 | AZ24: 13 | BA24: 17 | BB24: 10 | BC24: 14 | BD24: 8 | BE24: 14 | BF24: 6 | BG24: 2 | BH24: 1 | BO24: 2 | BP24: 0 | BQ24: 1 | BR24: 0 | BS24: 1 | BT24: 0 | BU24: 0 | BV24: 0 | BW24: 51 | BX24: 25 | BY24: 26
A25: Информатика | B25: 2022-10-26 | K25: 76 | L25: 35 | M25: 55 | N25: 25 | O25: 55 | P25: 28 | Q25: 43 | R25: 19 | S25: 36 | T25: 18 | U25: 13 | V25: 6 | Y25: 278 | Z25: 131 | AA25: 147 | AJ25: 0 | AK25: 0 | AL25: 0 | AM25: 0 | AN25: 0 | AO25: 0 | AP25: 0 | AQ25: 0 | AR25: 0 | AS25: 0 | AT25: 0 | AU25: 0 | AV25: 0 | AW25: 0 | AX25: 0 | AY25: 0 | AZ25: 0 | BI25: 0 | BJ25: 0 | BK25: 0 | BL25: 0 | BM25: 0 | BN25: 0 | BO25: 0 | BP25: 0 | BQ25: 0 | BR25: 0 | BS25: 0 | BT25: 0 | BU25: 0 | BV25: 0 | BW25: 0 | BX25: 0 | BY25: 0
A26: Технология | B26: 2022-09-27 | C26: 0 | D26: 0 | E26: 0 | F26: 0 | G26: 0 | H26: 0 | I26: 0 | J26: 0 | K26: 75 | L26: 34 | M26: 55 | N26: 25 | O26: 55 | P26: 28 | Q26: 43 | R26: 19 | S26: 36 | T26: 18 | U26: 13 | V26: 6 | W26: 0 | X26: 0 | Y26: 277 | Z26: 130 | AA26: 147 | AB26: 0 | AC26: 0 | AD26: 0 | AE26: 0 | AF26: 0 | AG26: 0 | AH26: 0 | AI26: 0 | AJ26: 2 | AK26: 0 | AL26: 0 | AM26: 0 | AN26: 0 | AO26: 0 | AP26: 0 | AQ26: 0 | AR26: 0 | AS26: 0 | AT26: 0 | AU26: 0 | AV26: 0 | AW26: 0 | AX26: 2 | AY26: 0 | AZ26: 2 | BA26: 0 | BB26: 0 | BC26: 0 | BD26: 0 | BE26: 0 | BF26: 0 | BG26: 0 | BH26: 0 | BI26: 16 | BJ26: 7 | BK26: 13 | BL26: 7 | BM26: 10 | BN26: 5 | BO26: 3 | BP26: 1 | BQ26: 7 | BR26: 4 | BS26: 3 | BT26: 3 | BU26: 0 | BV26: 0 | BW26: 52 | BX26: 27 | BY26: 25
A27: ВСЕГО | C27: =SUM(C5:C26) -> 112 | D27: 60 | E27: 182 | F27: 97 | G27: 186 | H27: 102 | I27: 385 | J27: 183 | K27: 1247 | L27: 574 | M27: 895 | N27: 408 | O27: 892 | P27: 453 | Q27: 908 | R27: 403 | S27: 765 | T27: 381 | U27: 286 | V27: 132 | W27: 0 | X27: 0 | Y27: 5858 | Z27: 2793 | AA27: 3065 | AB27: =SUM(AB5:AB26) -> 16 | AC27: 5 | AD27: 5 | AE27: 1 | AF27: 1 | AG27: 0 | AH27: =SUM(AH5:AH26) -> 3 | AI27: 1 | AJ27: 6 | AK27: 1 | AL27: 2 | AM27: 0 | AN27: 3 | AO27: 1 | AP27: 6 | AQ27: 2 | AR27: 4 | AS27: 2 | AT27: 3 | AU27: 2 | AV27: 0 | AW27: 0 | AX27: 49 | AY27: 15 | AZ27: =AX27-AY27 -> 34 | BA27: =SUM(BA5:BA26) -> 33 | BB27: 18 | BC27: 14 | BD27: 8 | BE27: 21 | BF27: 7 | BG27: =SUM(BG5:BG26) -> 15 | BH27: 5 | BI27: 50 | BJ27: 18 | BK27: 24 | BL27: 11 | BM27: 44 | BN27: 18 | BO27: 42 | BP27: 7 | BQ27: 37 | BR27: 11 | BS27: 25 | BT27: 17 | BU27: 0 | BV27: 0 | BW27: =BA27+BC27+BE27+BG27+BI27+BK27+BM27+BO27+BQ27+BS27+BU27 -> 305 | BX27: =BB27+BD27+BF27+BH27+BJ27+BL27+BN27+BP27+BR27+BT27+BV27 -> 120 | BY27: =BW27-BX27 -> 185
